bitfinex/quotes_BTCUSD_20230118
["timestamp","ask_amount","ask_price","bid_price","bid_amount"]
[1674060841234,0.28907096,20568.0,20565.0,0.25]
[1674060841727,0.51921057,20569.0,20566.0,0.486239]
[1674060841728,0.11563034,20569.0,20566.0,0.486239]
[1674060841730,0.28373701,20570.0,20566.0,0.486239]
[1674060841987,0.17344062,20572.0,20567.0,0.26794487]
[1674060842270,3.03745406,20574.0,20568.0,0.52111546]
[1674060842271,0.17344062,20574.0,20568.0,0.52111546]
[1674060842532,0.17344062,20574.0,20569.0,0.98728097]
[1674060842834,0.18108773,20575.0,20570.0,0.55726788]
[1674060843076,0.18108773,20575.0,20571.0,1.16653897]
[1674060843077,0.00764711,20575.0,20571.0,1.16653897]
[1674060843344,0.00764711,20575.0,20572.0,0.3]
[1674060843596,0.00764711,20575.0,20573.0,0.19432097]
[1674060843848,0.00764711,20575.0,20573.0,0.49432097]
[1674060844369,0.00764711,20575.0,20573.0,0.98038997]
[1674060844370,0.00764711,20575.0,20574.0,0.15]
[1674060844640,20.0,20580.0,20575.0,0.00764]
[1674060844892,20.0,20580.0,20576.0,0.19432097]
[1674060845209,19.99988,20580.0,20577.0,0.24451707]
[1674060845481,19.99988,20580.0,20578.0,1.607865]
[1674060845738,19.99988,20580.0,20579.0,0.3]
[1674060846017,19.99988,20580.0,20578.0,0.97147479]
[1674060846275,19.99988,20580.0,20578.0,1.22147479]
[1674060846542,20.10907437,20580.0,20578.0,1.22147479]
[1674060846816,20.10907437,20580.0,20578.0,0.25]
[1674060847068,0.469366,20579.0,20578.0,0.25]
[1674060847321,19.99988,20580.0,20578.0,0.25]
[1674060848117,0.465467,20579.0,20578.0,0.25]
[1674060848361,0.90432844,20579.0,20578.0,0.25]
[1674060848620,1.38153013,20579.0,20572.0,0.486081]
[1674060848882,1.38153013,20579.0,20572.0,0.68039697]
[1674060848883,0.25568237,20578.0,20572.0,0.68039697]
[1674060849142,0.10919437,20578.0,20573.0,0.59432097]
[1674060849658,19.99988,20580.0,20574.0,0.48604]
[1674060849918,19.99988,20580.0,20575.0,0.38013607]
[1674060850175,20.10907437,20580.0,20576.0,0.785991]
[1674060850440,19.99988,20580.0,20576.0,0.98031197]
[1674060850761,20.48248219,20580.0,20576.0,0.93031197]
[1674060850966,0.80427369,20579.0,20576.0,0.25]
[1674060851220,0.284883,20578.0,20576.0,0.25]
[1674060851476,1.48657497,20577.0,20576.0,0.25]
[1674060851735,0.15,20576.0,20568.0,0.486179]
[1674060852016,0.15,20576.0,20567.0,0.486194]
[1674060852017,1.51615337,20575.0,20567.0,0.486194]
[1674060852256,1.05760806,20574.0,20566.0,0.486224]
[1674060852519,0.10919437,20573.0,20567.0,0.486212]
[1674060852775,0.10919437,20574.0,20568.0,0.19432097]
[1674060853031,0.10919437,20574.0,20572.0,0.15]
[1674060853315,0.16072,20577.0,20573.0,0.320734]
[1674060853316,0.646701,20577.0,20573.0,0.320734]
[1674060853554,0.646701,20577.0,20570.0,0.486137]
[1674060853555,0.646701,20577.0,20574.0,0.19432097]
[1674060853811,0.337,20576.0,20574.0,0.19432097]
[1674060854064,0.635956,20578.0,20574.0,0.486048]
[1674060854065,0.124955,20575.0,20574.0,0.486048]
[1674060854326,0.1606,20578.0,20574.0,0.486048]
[1674060854646,0.349297,20577.0,20575.0,0.19432097]
[1674060854845,21.619398,20580.0,20575.0,0.19432097]
[1674060854846,19.99988,20580.0,20575.0,0.19432097]
[1674060855114,1.59573788,20579.0,20575.0,0.19432097]
[1674060855378,0.81036969,20578.0,20568.0,0.486188]
[1674060855644,0.486026,20575.0,20568.0,0.77775017]
[1674060855948,1.64437192,20577.0,20569.0,0.15]
[1674060855949,0.10919437,20574.0,20569.0,0.15]
[1674060856208,0.10919437,20573.0,20569.0,0.53059798]
[1674060856460,0.10919437,20572.0,20568.0,0.486188]
[1674060856718,0.10889355,20571.0,20567.0,0.486201]
[1674060856977,0.10889355,20570.0,20567.0,0.486201]
[1674060857463,0.10889355,20570.0,20567.0,0.6320657]
[1674060857710,0.486038,20575.0,20568.0,0.327207]
[1674060857985,0.15,20574.0,20569.0,0.73897556]
[1674060858239,0.47720169,20573.0,20569.0,0.19432097]
[1674060858490,0.58609524,20573.0,20567.0,0.486197]
[1674060858744,0.10889355,20572.0,20568.0,0.3]
[1674060858999,0.10889355,20572.0,20565.0,0.34443798]
[1674060859000,1.93557669,20571.0,20565.0,0.34443798]
[1674060859249,0.486055,20574.0,20566.0,0.3]
[1674060859485,0.59496955,20573.0,20567.0,0.27738917]
[1674060859755,1.08104255,20573.0,20568.0,0.3]
[1674060860248,0.3389,20572.0,20569.0,0.19432097]
[1674060860507,0.972242,20571.0,20568.0,0.3]
[1674060860784,0.486028,20575.0,20569.0,0.03]
[1674060861069,0.645935,20577.0,20570.0,0.19432097]
[1674060861070,0.485995,20577.0,20570.0,0.19432097]
[1674060861311,0.485965,20578.0,20571.0,0.60466817]
[1674060861551,0.485965,20578.0,20571.0,0.23875895]
[1674060861552,1.55886285,20577.0,20571.0,0.23875895]
[1674060861825,1.55886285,20577.0,20561.0,0.0126241]
[1674060861826,1.87954985,20576.0,20561.0,0.0126241]
[1674060862088,0.07556849,20570.0,20562.0,0.19432097]
[1674060862398,1.944804,20568.0,20561.0,0.0126241]
[1674060862614,1.56403561,20567.0,20561.0,0.0126241]
[1674060862865,1.779461,20566.0,20561.0,0.0126241]
[1674060863107,0.141268,20565.0,20561.0,0.0126241]
[1674060863371,1.779559,20564.0,20561.0,0.0126241]
[1674060863628,0.141268,20563.0,20561.0,0.0126241]
[1674060863887,1.40224855,20562.0,20561.0,0.0126241]
[1674060864148,1.87945024,20562.0,20561.0,0.0126241]
[1674060864429,2.00713081,20562.0,20561.0,0.0126241]
[1674060864671,1.77055669,20562.0,20561.0,0.0076241]
[1674060865152,1.293355,20562.0,20561.0,0.0076241]
[1674060865411,1.77055669,20562.0,20561.0,0.0076241]
[1674060866911,0.15,20561.0,20558.0,0.0126241]
[1674060867162,2.56463423,20560.0,20558.0,0.0126241]
[1674060867417,1.77135896,20559.0,20558.0,4.1e-06]
[1674060867678,1.77135896,20559.0,20551.0,0.01]
[1674060867679,2.91017796,20559.0,20551.0,0.01]
[1674060867939,0.47720169,20557.0,20551.0,0.01]
[1674060868193,3.15275324,20556.0,20551.0,0.01]
[1674060868450,1.04263856,20555.0,20552.0,0.01365548]
[1674060868712,1.92093469,20554.0,20552.0,0.01365548]
[1674060868948,0.76846969,20553.0,20552.0,0.01365548]
[1674060869218,1.25501569,20553.0,20552.0,0.01365548]
[1674060869720,1.53523875,20553.0,20552.0,0.01365548]
[1674060870080,1.10501569,20553.0,20552.0,0.01365548]
[1674060870244,0.627814,20553.0,20552.0,0.01365548]
[1674060872069,0.777814,20553.0,20552.0,0.01365548]
[1674060872322,0.627814,20553.0,20552.0,0.01365548]
[1674060872825,0.614914,20553.0,20552.0,0.06769548]
[1674060873075,0.486494,20556.0,20552.0,0.33216652]
[1674060873332,0.486422,20559.0,20553.0,0.82637897]
[1674060873589,0.486442,20558.0,20554.0,0.19432097]
[1674060873830,0.486442,20558.0,20554.0,0.49432097]
[1674060874095,0.486442,20558.0,20555.0,0.19708109]
[1674060874363,0.486348,20562.0,20555.0,0.19708109]
[1674060874364,0.486379,20561.0,20555.0,0.19708109]
[1674060874625,0.486379,20561.0,20556.0,0.24402908]
[1674060874885,0.96354969,20562.0,20557.0,0.64432097]
[1674060875368,0.96354969,20562.0,20558.0,0.19432097]
[1674060875370,0.486348,20562.0,20558.0,0.49432097]
[1674060875619,0.96354869,20562.0,20558.0,0.49432097]
[1674060875875,0.492499,20561.0,20553.0,0.15]
[1674060876129,0.972828,20559.0,20558.0,0.25]
[1674060876394,2.86104069,20559.0,20558.0,0.10697892]
[1674060876674,0.05667026,20557.0,20552.0,0.11365548]
[1674060876931,1.68874455,20556.0,20552.0,0.11365548]
[1674060877183,0.324362,20555.0,20553.0,0.00013801]
[1674060877454,0.486519,20555.0,20553.0,0.01251736]
[1674060877742,0.54312726,20557.0,20553.0,0.01251736]
[1674060877743,1.02958526,20557.0,20553.0,0.01251736]
[1674060878001,0.05667026,20557.0,20553.0,0.20683833]
[1674060878260,0.05667026,20557.0,20554.0,0.22637035]
[1674060878512,0.05667026,20557.0,20555.0,0.79766997]
[1674060878772,0.05667026,20557.0,20556.0,0.495617]
[1674060879038,0.05667026,20557.0,20556.0,0.645617]
[1674060879313,0.46603726,20561.0,20556.0,0.76838364]
[1674060879569,0.486341,20562.0,20557.0,0.82127697]
[1674060879812,0.486341,20562.0,20558.0,0.19432097]
[1674060880072,0.486321,20563.0,20557.0,0.3]
[1674060880073,0.486321,20563.0,20559.0,0.19445893]
[1674060880584,1.1195,20564.0,20560.0,0.21376686]
[1674060880850,0.49373385,20567.0,20561.0,0.49432097]
[1674060881122,0.49373485,20567.0,20562.0,0.51523697]
[1674060881392,0.00750985,20565.0,20563.0,0.89089173]
[1674060881672,0.00750985,20565.0,20561.0,0.82981694]
[1674060881673,0.042,20562.0,20561.0,0.82981694]
[1674060881941,0.00750985,20565.0,20561.0,0.34346894]
[1674060882192,0.00750985,20565.0,20562.0,0.48585088]
[1674060882452,0.00750985,20565.0,20563.0,0.3]
[1674060882707,0.49377685,20565.0,20563.0,0.3]
[1674060883019,0.5294867,20567.0,20563.0,0.49432097]
[1674060883271,0.5294867,20567.0,20564.0,0.22432097]
[1674060883272,0.0432637,20567.0,20564.0,0.22432097]
[1674060883533,0.042,20565.0,20564.0,0.27836097]
[1674060883799,0.042,20565.0,20564.0,0.412202]
[1674060884067,0.038,20565.0,20564.0,0.25]
[1674060884346,1.97864785,20575.0,20565.0,0.038]
[1674060884608,20.14988,20580.0,20574.0,1.7584945]
[1674060884609,19.7650861,20580.0,20574.0,1.7584945]
[1674060884887,5.08080078,20580.0,20579.0,0.7192]
[1674060885160,0.00776415,20588.0,20583.0,0.9890104]
[1674060885433,0.00862517,20589.0,20583.0,0.9890104]
[1674060885434,0.00862517,20589.0,20588.0,0.590276]
[1674060885932,0.02152154,20596.0,20588.0,3.04438461]
[1674060885935,0.00821957,20594.0,20588.0,3.04438461]
[1674060886186,0.00821957,20594.0,20589.0,1.30998566]
[1674060886442,0.00821957,20594.0,20590.0,1.96476566]
[1674060886702,0.00821957,20594.0,20591.0,1.20151915]
[1674060886957,0.00821957,20594.0,20592.0,1.87175515]
[1674060887225,0.00821957,20594.0,20593.0,0.89949215]
[1674060887486,0.00821957,20594.0,20593.0,1.68509315]
[1674060887746,0.06783957,20594.0,20593.0,1.68509315]
[1674060888005,0.12181957,20594.0,20593.0,1.93509315]
[1674060888757,0.00815957,20594.0,20593.0,2.12941412]
[1674060889017,0.02152154,20596.0,20593.0,2.42069415]
[1674060889282,0.02152154,20596.0,20594.0,1.58051981]
[1674060889610,0.0001,20600.0,20596.0,0.58276646]
[1674060889813,0.0001,20600.0,20597.0,0.51790897]
[1674060890075,0.00942806,20603.0,20599.0,0.1401]
[1674060890339,0.00936806,20603.0,20601.0,0.1413]
[1674060890598,0.15,20605.0,20602.0,1.58403412]
[1674060891074,0.15,20605.0,20604.0,0.1413]
[1674060891347,0.15175,20621.0,20604.0,3.28906012]
[1674060891348,0.15224,20618.0,20604.0,3.28906012]
[1674060891605,0.10889355,20618.0,20608.0,0.73388646]
[1674060891863,0.15112,20621.0,20611.0,1.455531]
[1674060892142,1.1678,20625.0,20614.0,0.1401]
[1674060892376,0.635799,20633.0,20617.0,0.1405]
[1674060892377,0.15112,20628.0,20617.0,0.1405]
[1674060892630,1.31892,20631.0,20619.0,0.1401]
[1674060892889,0.14612,20631.0,20622.0,0.969812]
[1674060893157,0.1413,20632.0,20623.0,1.39941043]
[1674060893439,0.10881392,20634.0,20624.0,1.09214743]
[1674060893687,0.00992037,20634.0,20625.0,1.89885643]
[1674060893957,0.00992037,20634.0,20626.0,1.09395743]
[1674060894217,0.70956397,20633.0,20627.0,0.65702127]
[1674060894473,0.70956397,20633.0,20624.0,0.48485]
[1674060894474,0.6,20631.0,20628.0,0.58276646]
[1674060894752,0.337533,20630.0,20629.0,0.37601016]
[1674060895027,0.39752284,20630.0,20626.0,0.25]
[1674060895281,0.132289,20629.0,20626.0,0.16968223]
[1674060895536,0.132289,20629.0,20625.0,6e-05]
[1674060895537,0.19432097,20629.0,20625.0,6e-05]
[1674060895795,0.15,20630.0,20625.0,0.16974223]
[1674060896349,0.15,20630.0,20626.0,0.33293]
[1674060896352,0.15,20630.0,20625.0,6e-05]
[1674060896620,0.81282266,20629.0,20625.0,6e-05]
[1674060896880,0.329122,20628.0,20625.0,0.41974223]
[1674060897135,0.15,20630.0,20625.0,0.25006]
[1674060897414,0.15,20630.0,20626.0,0.50050323]
[1674060897701,0.15,20630.0,20627.0,0.315004]
[1674060897967,0.1413,20627.0,20613.0,0.485114]
[1674060898229,0.1413,20627.0,20609.0,0.15]
[1674060898230,0.1413,20616.0,20609.0,0.15]
[1674060898487,0.326278,20615.0,20609.0,0.15]
[1674060898768,0.1404,20610.0,20605.0,0.15]
[1674060899029,0.1413,20617.0,20609.0,0.25]
[1674060899284,0.19432097,20616.0,20610.0,0.16968223]
[1674060899548,0.19432097,20616.0,20607.0,0.14835]
[1674060899824,0.69095476,20615.0,20608.0,0.16968223]
[1674060900095,0.50906597,20614.0,20608.0,0.16968223]
[1674060900351,0.50906597,20614.0,20606.0,0.25]
[1674060900352,0.19432097,20613.0,20606.0,0.25]
[1674060900593,0.34225,20612.0,20606.0,0.485285]
[1674060900855,0.28944,20616.0,20606.0,0.485285]
[1674060900856,0.1413,20620.0,20607.0,0.16968223]
[1674060901109,0.14814,20614.0,20608.0,0.16968223]
[1674060901423,0.34246097,20614.0,20609.0,0.16968223]
[1674060901607,0.34246097,20614.0,20608.0,0.04626754]
[1674060901608,0.0482361,20614.0,20608.0,0.04626754]
[1674060901855,0.34432097,20614.0,20609.0,0.16968223]
[1674060902103,0.15,20614.0,20610.0,0.313662]
[1674060902365,0.14741,20620.0,20611.0,0.627374]
[1674060902622,0.11152436,20619.0,20612.0,0.48313923]
[1674060902875,0.15,20618.0,20613.0,0.46968223]
[1674060903128,0.15,20618.0,20612.0,0.04626754]
[1674060903129,0.15,20618.0,20614.0,0.16968223]
[1674060903372,0.15,20618.0,20615.0,0.50450023]
[1674060903617,0.15,20618.0,20616.0,1.113008]
[1674060903872,0.15,20618.0,20617.0,0.50509623]
[1674060904126,0.15,20618.0,20617.0,0.68168154]
[1674060904380,0.15,20618.0,20617.0,0.85150135]
[1674060904627,0.15,20619.0,20617.0,1.33653735]
[1674060904898,0.15,20627.0,20618.0,1.40006392]
[1674060905152,0.15,20627.0,20625.0,0.1401]
[1674060905404,0.15,20627.0,20626.0,0.47696023]
[1674060905659,0.15,20627.0,20626.0,1.29725018]
[1674060905916,0.15,20627.0,20626.0,0.90354554]
[1674060906163,0.15,20627.0,20626.0,1.06242618]
[1674060906425,0.04842317,20632.0,20626.0,0.90354554]
[1674060906662,0.04842317,20632.0,20627.0,0.80035264]
[1674060906925,0.04842317,20632.0,20619.0,0.27661513]
[1674060906926,1.15622966,20631.0,20619.0,0.27661513]
[1674060907181,0.1413,20624.0,20614.0,0.00019]
[1674060907442,0.324847,20623.0,20622.0,0.25]
[1674060907729,0.84137066,20627.0,20622.0,0.25]
[1674060907949,0.63108932,20631.0,20622.0,0.25]
[1674060907950,0.14154,20632.0,20623.0,0.15924036]
[1674060908189,0.14154,20632.0,20624.0,0.15924036]
[1674060908468,0.63496337,20634.0,20625.0,0.15924036]
[1674060908721,0.00992037,20634.0,20626.0,0.64405136]
[1674060908967,0.00992037,20634.0,20627.0,0.48999236]
[1674060909216,0.00992037,20634.0,20629.0,0.969504]
[1674060909467,0.00992037,20634.0,20629.0,0.484752]
[1674060909751,0.00992037,20634.0,20627.0,0.4]
[1674060909752,0.1413,20631.0,20627.0,0.4]
[1674060909997,0.19432097,20630.0,20627.0,0.25]
[1674060910250,0.338872,20629.0,20628.0,7.024e-05]
[1674060910494,0.15,20630.0,20628.0,0.25]
[1674060910754,0.15,20630.0,20622.0,0.484898]
[1674060910755,0.15,20629.0,20622.0,0.484898]
[1674060911017,0.19432097,20629.0,20626.0,0.484806]
[1674060911270,0.15,20631.0,20627.0,0.33730825]
[1674060911613,0.19432097,20634.0,20628.0,0.809753]
[1674060911763,0.15070159,20636.0,20628.0,0.15924036]
[1674060912017,0.1413,20634.0,20627.0,7.025e-05]
[1674060912269,0.1413,20634.0,20621.0,0.634933]
[1674060912270,0.1402,20630.0,20621.0,0.634933]
[1674060912530,0.49353797,20629.0,20628.0,0.25]
[1674060912802,0.13926,20632.0,20625.0,0.969675]
[1674060913048,0.19432097,20632.0,20627.0,0.484782]
[1674060913299,0.15,20633.0,20627.0,0.484782]
[1674060913551,0.015,20632.0,20627.0,0.484782]
[1674060913816,0.19432097,20631.0,20628.0,0.15]
[1674060914098,0.19432097,20631.0,20624.0,0.634851]
[1674060914338,0.015,20632.0,20626.0,0.25]
[1674060914339,0.47720169,20629.0,20626.0,0.25]
[1674060914590,0.61760169,20627.0,20622.0,0.15]
[1674060914848,0.328828,20626.0,20622.0,0.15]
[1674060915108,0.52059897,20625.0,20622.0,0.15]
[1674060915416,0.311645,20624.0,20622.0,0.15]
[1674060915681,0.32933,20623.0,20622.0,0.15]
[1674060915931,0.1413,20631.0,20622.0,0.484903]
[1674060916184,0.15,20628.0,20620.0,0.34640308]
[1674060916420,0.19432097,20627.0,20622.0,0.25]
[1674060916915,0.15,20628.0,20621.0,0.484941]
[1674060916918,0.15,20628.0,20623.0,0.484883]
[1674060917175,4.88684272,20634.0,20623.0,0.484883]
[1674060917422,0.19432097,20633.0,20624.0,0.3]
[1674060917684,0.1413,20631.0,20623.0,0.25]
[1674060917940,0.99517493,20630.0,20623.0,0.25]
[1674060918220,0.625179,20628.0,20623.0,0.25]
[1674060918467,0.53554697,20627.0,20624.0,0.15]
[1674060918727,0.340636,20626.0,20623.0,0.25]
[1674060918987,0.620107,20631.0,20624.0,0.48501106]
[1674060918988,0.15,20627.0,20624.0,0.48501106]
[1674060919301,0.15,20627.0,20625.0,0.319273]
[1674060919569,0.2748,20629.0,20623.0,0.25]
[1674060919832,0.61850169,20627.0,20619.0,0.48498]
[1674060920081,0.1404,20624.0,20623.0,0.25]
[1674060920336,1.12725793,20624.0,20623.0,0.25]
[1674060920649,0.342986,20624.0,20617.0,0.635013]
[1674060920914,1.00330066,20623.0,20617.0,0.25]
[1674060921176,0.1404,20618.0,20610.0,0.04626754]
[1674060921443,0.1413,20612.0,20607.0,0.25]
[1674060921738,0.1402,20609.0,20607.0,0.25]
[1674060922209,1.01137166,20608.0,20599.0,0.49468331]
[1674060922243,1.49661966,20608.0,20599.0,0.84185247]
[1674060922508,1.49661966,20608.0,20599.0,0.49468231]
[1674060922509,0.67152266,20607.0,20599.0,0.49468231]
[1674060922765,0.77377206,20606.0,20600.0,0.15]
[1674060923023,0.19432097,20605.0,20599.0,0.49468431]
[1674060923281,0.19432097,20605.0,20600.0,0.53244905]
[1674060923536,0.19432097,20604.0,20601.0,0.474118]
[1674060923783,0.13319,20608.0,20602.0,0.324688]
[1674060924042,0.19432097,20608.0,20603.0,0.333526]
[1674060924299,0.1413,20615.0,20604.0,0.486912]
[1674060924551,0.47720169,20614.0,20605.0,0.316705]
[1674060924804,0.61710169,20613.0,20604.0,0.04702905]
[1674060925059,0.19432097,20612.0,20605.0,0.04702905]
[1674060925306,0.19432097,20611.0,20605.0,0.04702905]
[1674060925569,0.67152266,20610.0,20605.0,0.04702905]
[1674060925849,0.1413,20607.0,20599.0,0.00922931]
[1674060926102,1.3419163,20606.0,20599.0,0.00922931]
[1674060926355,0.51497397,20605.0,20599.0,0.00922931]
[1674060926609,0.19432097,20604.0,20599.0,0.49467031]
[1674060926870,0.19432097,20604.0,20600.0,0.311525]
[1674060927145,0.34716916,20610.0,20601.0,0.15]
[1674060927383,0.13293,20614.0,20602.0,0.52409997]
[1674060927636,0.13293,20614.0,20603.0,0.87880497]
[1674060927637,0.13251,20613.0,20603.0,0.87880497]
[1674060927883,0.96463965,20616.0,20604.0,0.81334576]
[1674060927884,0.34706465,20616.0,20604.0,0.81334576]
[1674060928147,0.19432097,20615.0,20605.0,0.87700894]
[1674060928413,0.73867493,20614.0,20606.0,0.52236697]
[1674060928683,0.73867493,20614.0,20607.0,0.19432097]
[1674060928684,0.1413,20610.0,20607.0,0.19432097]
[1674060928937,0.1413,20608.0,20603.0,0.25]
[1674060929189,0.1413,20608.0,20599.0,0.00922931]
[1674060929190,0.804894,20607.0,20599.0,0.00922931]
[1674060929460,0.1413,20602.0,20599.0,0.00922931]
[1674060929750,0.52443997,20601.0,20599.0,0.00922931]
[1674060929973,0.51829897,20600.0,20599.0,0.25922931]
[1674060930225,0.27287,20604.0,20599.0,0.25922931]
[1674060930494,0.1413,20606.0,20600.0,0.19432097]
[1674060930743,0.2884,20609.0,20601.0,0.51743097]
[1674060931009,0.0773605,20608.0,20602.0,0.19432097]
[1674060931262,0.62720169,20607.0,20603.0,0.19432097]
[1674060931523,0.1413,20605.0,20600.0,0.19432097]
[1674060931772,0.51386997,20604.0,20599.0,0.25922931]
[1674060932044,0.141,20602.0,20599.0,0.25922931]
[1674060932343,0.53476797,20601.0,20599.0,0.25922931]
[1674060932543,0.335345,20600.0,20599.0,0.25922931]
[1674060932796,0.66027197,20600.0,20599.0,0.25922931]
[1674060933053,0.15,20599.0,20597.0,0.011008]
[1674060933307,0.15,20599.0,20590.0,0.02]
[1674060933308,1.60942266,20598.0,20590.0,0.02]
[1674060933601,0.141,20596.0,20590.0,0.02]
[1674060933854,0.19432097,20595.0,20591.0,0.15]
[1674060934097,0.2117694,20601.0,20594.0,0.15]
[1674060934361,0.485333,20605.0,20593.0,0.485587]
[1674060934362,0.485333,20605.0,20595.0,0.52008997]
[1674060934630,0.1413,20606.0,20596.0,0.19432097]
[1674060934631,0.485403,20602.0,20596.0,0.19432097]
[1674060934881,0.1402,20600.0,20596.0,0.19432097]
[1674060935142,0.141,20598.0,20590.0,0.02]
[1674060935399,1.3473369,20597.0,20590.0,0.02]
[1674060935649,0.96055635,20596.0,20590.0,0.02]
[1674060935931,0.52910597,20595.0,20590.0,0.02]
[1674060936203,0.19432097,20595.0,20590.0,0.02]
[1674060936446,0.19432097,20595.0,20591.0,0.338623]
[1674060936695,0.19432097,20594.0,20592.0,0.327516]
[1674060936947,1.07817595,20598.0,20590.0,0.505669]
[1674060937203,0.19432097,20597.0,20591.0,0.635634]
[1674060937503,0.67152266,20596.0,20590.0,0.02]
[1674060937736,0.47720169,20594.0,20590.0,0.02]
[1674060937987,2.22237966,20593.0,20590.0,0.02]
[1674060938241,0.316227,20592.0,20590.0,0.02]
[1674060938503,0.79662269,20591.0,20590.0,0.02]
[1674060938764,0.319421,20591.0,20590.0,0.02]
[1674060939000,0.41636027,20591.0,20590.0,0.02]
[1674060939251,0.47720169,20593.0,20590.0,0.02]
[1674060939500,0.47720169,20593.0,20583.0,0.15]
[1674060939501,0.47720169,20591.0,20583.0,0.15]
[1674060939754,0.47720169,20591.0,20581.0,0.01144644]
[1674060939755,1.79903233,20590.0,20581.0,0.01144644]
[1674060940009,1.00136766,20589.0,20581.0,0.01144644]
[1674060940265,0.19432097,20588.0,20582.0,0.53288205]
[1674060940519,0.19432097,20587.0,20583.0,0.334092]
[1674060940772,0.19432097,20591.0,20584.0,1.29781692]
[1674060941024,0.485536,20596.0,20586.0,0.15]
[1674060941283,0.19432097,20596.0,20587.0,0.33786]
[1674060941537,0.19432097,20596.0,20588.0,0.809292]
[1674060941804,0.19432097,20596.0,20588.0,0.53077118]
[1674060942059,0.67152266,20595.0,20587.0,0.53079418]
[1674060942310,0.67152266,20595.0,20584.0,0.485809]
[1674060942311,0.971221,20593.0,20584.0,0.485809]
[1674060942574,1.01200766,20592.0,20582.0,0.53089818]
[1674060942815,0.485696,20589.0,20581.0,0.01144644]
[1674060943069,0.15,20587.0,20581.0,0.01144644]
[1674060943326,0.49821797,20586.0,20581.0,0.01144644]
[1674060943618,0.67152266,20585.0,20581.0,0.01144644]
[1674060943911,1.16595697,20584.0,20581.0,0.01144644]
[1674060944154,0.324894,20583.0,20581.0,0.01144644]
[1674060944406,0.34287,20582.0,20581.0,0.01157887]
[1674060944669,0.32558997,20586.0,20581.0,0.01144644]
[1674060944922,0.635729,20588.0,20581.0,0.01144644]
[1674060944923,0.15,20588.0,20582.0,0.816329]
[1674060945213,0.635686,20590.0,20581.0,0.01144644]
[1674060945448,0.19432097,20589.0,20581.0,0.49731844]
[1674060945969,0.19432097,20589.0,20583.0,0.15]
[1674060946223,0.19432097,20589.0,20584.0,0.321113]
[1674060946505,0.19432097,20589.0,20582.0,0.485845]
[1674060946745,0.19432097,20588.0,20583.0,0.3]
[1674060947007,0.19432097,20588.0,20584.0,0.15]
[1674060947264,0.614958,20591.0,20582.0,0.485844]
[1674060947531,0.19432097,20590.0,20583.0,0.485827]
[1674060947907,0.19432097,20592.0,20584.0,0.331971]
[1674060948073,0.19432097,20592.0,20585.0,0.15]
[1674060948329,0.19432097,20592.0,20586.0,0.812407]
[1674060948588,0.19432097,20592.0,20584.0,0.485802]
[1674060948589,0.67152266,20591.0,20583.0,0.485827]
[1674060948847,0.485701,20589.0,20581.0,0.79731944]
[1674060949111,0.485701,20589.0,20583.0,0.25]
[1674060949112,0.29145897,20588.0,20583.0,0.25]
[1674060949368,0.19432097,20587.0,20583.0,0.25]
[1674060949631,0.19432097,20586.0,20581.0,0.01144644]
[1674060949886,0.582866,20588.0,20583.0,0.25]
[1674060949887,0.19432097,20585.0,20583.0,0.25]
[1674060950147,0.28647279,20587.0,20583.0,0.25]
[1674060950399,0.28647279,20587.0,20581.0,0.01144644]
[1674060950400,0.08693388,20586.0,20581.0,0.01144644]
[1674060950651,0.19432097,20585.0,20583.0,0.25]
[1674060950917,1.20598387,20589.0,20583.0,0.25]
[1674060950918,0.485642,20592.0,20584.0,0.315793]
[1674060951182,0.485642,20592.0,20585.0,0.307598]
[1674060951434,0.1188,20589.0,20583.0,0.25]
[1674060951761,1.97101997,20588.0,20583.0,0.25]
[1674060951982,0.485552,20587.0,20583.0,0.25]
[1674060952232,1.302461,20586.0,20583.0,0.25]
[1674060952497,1.40241976,20585.0,20583.0,0.25]
[1674060952759,1.00458166,20584.0,20583.0,0.0061]
[1674060953107,1.97620966,20584.0,20579.0,0.01164766]
[1674060953282,0.91983824,20583.0,20579.0,0.01164766]
[1674060953542,0.91983824,20583.0,20573.0,0.011008]
[1674060953543,1.97712266,20582.0,20575.0,0.01138062]
[1674060953791,1.35918546,20581.0,20575.0,0.01138062]
[1674060954048,2.46732341,20580.0,20575.0,0.01138062]
[1674060954311,0.98931566,20579.0,20575.0,0.01138062]
[1674060954564,0.322723,20578.0,20575.0,0.01138062]
[1674060954815,0.346028,20577.0,20575.0,0.01138062]
[1674060955070,0.47720169,20576.0,20575.0,0.01138062]
[1674060955324,0.45782207,20576.0,20575.0,0.01138062]
[1674060955573,0.318575,20576.0,20575.0,0.01138062]
[1674060955844,0.318575,20576.0,20573.0,0.011008]
[1674060955845,0.79577669,20576.0,20573.0,0.011008]
[1674060956088,0.337653,20575.0,20573.0,0.011008]
[1674060956342,0.67152266,20574.0,20573.0,8e-06]
[1674060956614,0.12466,20573.0,20572.0,0.01133444]
[1674060956892,0.43068,20573.0,20572.0,0.01133444]
[1674060957126,0.31702,20573.0,20572.0,0.01133444]
[1674060957382,0.48597,20578.0,20572.0,0.07095444]
[1674060957639,0.485916,20580.0,20573.0,0.630463]
[1674060957897,0.15,20577.0,20573.0,0.31702]
[1674060958153,0.335362,20576.0,20573.0,0.31702]
[1674060958406,0.485866,20582.0,20573.0,1.289159]
[1674060958656,0.485866,20582.0,20574.0,0.04505318]
[1674060958657,0.5476689,20581.0,20574.0,0.04505318]
[1674060958910,0.68020497,20582.0,20574.0,0.68109718]
[1674060959172,0.485837,20584.0,20574.0,0.68109718]
[1674060959434,0.48576,20587.0,20575.0,0.38706805]
[1674060959709,0.485832,20584.0,20576.0,0.801241]
[1674060959963,0.19432097,20583.0,20576.0,0.04702905]
[1674060960216,1.37044913,20582.0,20573.0,0.31702]
[1674060960477,1.82107146,20581.0,20573.0,0.31702]
[1674060960757,0.52194797,20580.0,20573.0,0.803088]
[1674060960981,0.19432097,20580.0,20574.0,0.15]
[1674060961238,0.485795,20585.0,20575.0,1.795477]
[1674060961490,0.19432097,20585.0,20576.0,0.338348]
[1674060961747,0.485729,20588.0,20578.0,1.457821]